bitfinex/quotes_SOLUSD_20250704
["timestamp","ask_amount","ask_price","bid_price","bid_amount"]
[1751587202901,1e-08,152.57,152.5,0.52648471]
[1751587205402,1e-08,152.57,152.51,6.7]
[1751587205579,1e-08,152.57,152.51,94.4]
[1751587209115,1e-08,152.57,152.51,117.34931479]
[1751587209717,1e-08,152.57,152.52,0.42648471]
[1751587209994,1e-08,152.57,152.52,33.38648471]
[1751587210399,1e-08,152.57,152.52,269.88648471]
[1751587210587,1e-08,152.57,152.54,0.42648471]
[1751587211209,1e-08,152.57,152.56,0.14216157]
[1751587211408,1e-08,152.57,152.56,87.84216157]
[1751587212211,1e-08,152.57,152.56,87.98432314]
[1751587212394,1e-08,152.57,152.56,88.12648471]
[1751587213084,1e-08,152.57,152.56,121.10648471]
[1751587213285,1e-08,152.57,152.56,127.66128282]
[1751587217323,1e-08,152.57,152.56,127.23479811]
[1751587217706,1e-08,152.57,152.56,94.25479811]
[1751587217919,1e-08,152.57,152.56,133.93479811]
[1751587218120,1e-08,152.57,152.56,134.07695968]
[1751587231415,1e-08,152.57,152.56,101.09695968]
[1751587231716,1e-08,152.57,152.56,134.05695968]
[1751587232105,1e-08,152.57,152.56,101.09695968]
[1751587232318,1e-08,152.57,152.56,134.05695968]
[1751587232507,1e-08,152.57,152.56,101.09695968]
[1751587232711,1e-08,152.57,152.56,134.05695968]
[1751587236727,1e-08,152.57,152.56,101.09695968]
[1751587236930,1e-08,152.57,152.56,100.95479811]
[1751587237436,1e-08,152.57,152.56,133.91479811]
[1751587238242,1e-08,152.57,152.56,127.36]
[1751587238433,1e-08,152.57,152.56,6.7]
[1751587246448,1e-08,152.57,152.56,6.8]
[1751587265762,1e-08,152.57,152.56,13.35479811]
[1751587268578,1e-08,152.57,152.56,6.8]
[1751587269570,1e-08,152.57,152.56,0.1]
[1751587271677,1e-08,152.57,152.56,6.65479811]
[1751587273684,1e-08,152.57,152.56,0.1]
[1751587274667,1e-08,152.57,152.56,6.65479811]
[1751587284064,1e-08,152.57,152.56,0.1]
[1751587284990,1e-08,152.57,152.56,6.65479811]
[1751587285491,1e-08,152.57,152.56,0.1]
[1751587294595,1e-08,152.57,152.56,6.65479811]
[1751587297795,1e-08,152.57,152.56,0.1]
[1751587305504,1e-08,152.57,152.56,6.65479811]
[1751587321100,1e-08,152.57,152.56,0.1]
[1751587321728,1e-08,152.57,152.56,6.65479811]
[1751587321892,1e-08,152.57,152.56,127.41695968]
[1751587322224,0.2,152.6,152.57,0.14216157]
[1751587322391,1e-08,152.6,152.59,0.14216157]
[1751587322596,1e-08,152.63,152.6,7.9011]
[1751587322793,1e-08,152.63,152.62,0.14216157]
[1751587323097,1e-08,152.63,152.62,38.39411034]
[1751587323311,1e-08,152.63,152.62,33.08216157]
[1751587323706,1e-08,152.63,152.62,39.63438277]
[1751587324406,1e-08,152.63,152.62,127.33438277]
[1751587325524,1e-08,152.63,152.62,127.61870591]
[1751587325806,1e-08,152.64,152.63,6.97827662]
[1751587326422,1e-08,152.64,152.63,94.67827662]
[1751587326627,0.2,152.67,152.63,111.0577564]
[1751587326826,0.2,152.67,152.65,0.14216157]
[1751587327121,0.2,152.67,152.63,110.91559483]
[1751587327122,0.2,152.67,152.66,33.08216157]
[1751587327896,0.2,152.67,152.66,39.63266595]
[1751587330824,0.2,152.67,152.66,127.33266595]
[1751587331619,1e-08,152.67,152.66,127.61698909]
[1751587336099,1e-08,152.67,152.66,130.93457468]
[1751587342231,1e-08,152.67,152.66,130.65025154]
[1751587344515,1e-08,152.67,152.66,130.93457468]
[1751587350733,1e-08,152.67,152.66,130.65025154]
[1751587350929,1e-08,152.67,152.66,97.71025154]
[1751587351114,1e-08,152.67,152.66,130.63025154]
[1751587351312,1e-08,152.67,152.66,130.65025154]
[1751587351937,1e-08,152.67,152.66,97.71025154]
[1751587352140,1e-08,152.67,152.66,130.50808997]
[1751587352733,1e-08,152.67,152.66,130.65025154]
[1751587352934,1e-08,152.67,152.66,97.71025154]
[1751587353124,1e-08,152.67,152.66,130.65025154]
[1751587356522,1e-08,152.67,152.66,39.49050438]
[1751587358942,1e-08,152.67,152.66,6.55050438]
[1751587359124,1e-08,152.67,152.66,39.49050438]
[1751587359534,1e-08,152.67,152.66,127.19050438]
[1751587361544,1e-08,152.67,152.66,127.29050438]
[1751587362042,1e-08,152.67,152.66,94.35050438]
[1751587362345,1e-08,152.67,152.66,127.29050438]
[1751587371130,1e-08,152.67,152.66,94.35050438]
[1751587371333,1e-08,152.67,152.66,0.1]
[1751587374155,1e-08,152.67,152.66,6.65050438]
[1751587378367,1e-08,152.67,152.66,13.35050438]
[1751587383242,1e-08,152.67,152.66,101.05050438]
[1751587389166,1e-08,152.67,152.66,13.35050438]
[1751587402584,1e-08,152.67,152.66,6.8]
[1751587403992,1e-08,152.67,152.66,13.35050438]
[1751587424698,1e-08,152.67,152.66,101.05050438]
[1751587427410,0.2,152.69,152.66,150.50892692]
[1751587442402,0.2,152.69,152.68,32.69180788]
[1751587442600,0.2,152.69,152.68,153.33180788]
[1751587445217,0.2,152.69,152.68,127.18964631]
[1751587445427,0.2,152.69,152.68,127.33180788]
[1751587448825,0.2,152.69,152.68,127.18964631]
[1751587454319,0.2,152.69,152.68,127.33180788]
[1751587459905,0.2,152.69,152.68,153.33180788]
[1751587460106,0.2,152.69,152.68,120.39180788]
[1751587460425,0.2,152.69,152.68,153.33180788]
[1751587476849,0.2,152.69,152.68,127.33180788]
[1751587480463,0.2,152.69,152.68,134.03180788]
[1751587489262,0.2,152.69,152.68,94.39180788]
[1751587489478,0.2,152.69,152.68,134.01180788]
[1751587510795,0.2,152.69,152.68,142.20045898]
[1751587511472,0.2,152.69,152.68,134.01180788]
[1751587512585,0.2,152.69,152.68,142.20045898]
[1751587519175,0.2,152.69,152.68,134.01180788]
[1751587520370,0.2,152.69,152.68,142.20045898]
[1751587524072,0.2,152.69,152.68,142.17858888]
[1751587541413,0.2,152.7,152.69,0.14216157]
[1751587541596,1e-08,152.7,152.69,41.22894257]
[1751587542904,1e-08,152.7,152.69,39.61137893]
[1751587543107,0.2,152.72,152.71,26.14216157]
[1751587543295,0.2,152.72,152.71,59.06216157]
[1751587544215,0.2,152.72,152.71,65.6105212]
[1751587544595,0.2,152.72,152.71,72.2905212]
[1751587548917,0.2,152.72,152.71,159.9905212]
[1751587561937,0.2,152.72,152.71,113.7]
[1751587562233,0.2,152.72,152.71,87.7]
[1751587562605,6.2656,152.72,152.71,87.7]
[1751587563424,6.4621,152.7,152.66,0.1]
[1751587563727,1.521,152.68,152.66,0.1]
[1751587563930,6.4621,152.67,152.64,0.2]
[1751587565337,13.01223781,152.67,152.64,0.2]
[1751587568744,6.4621,152.67,152.64,0.2]
[1751587569326,6.4621,152.67,152.64,6.75116371]
[1751587569646,1.521,152.68,152.64,6.75116371]
[1751587578443,1.521,152.68,152.64,94.45116371]
[1751587583756,6.2312,152.71,152.64,94.45116371]
[1751587584990,12.77967385,152.71,152.64,94.45116371]
[1751587585488,12.77967385,152.71,152.64,127.43116371]
[1751587593279,12.87967385,152.71,152.64,127.43116371]
[1751587607502,12.87967385,152.71,152.64,127.41116371]
[1751587621998,12.87967385,152.71,152.64,134.11116371]
[1751587628796,6.3312,152.71,152.67,26.0]
[1751587629098,12.87961371,152.71,152.64,102.76192721]
[1751587629300,1.80016157,152.68,152.64,6.9]
[1751587629492,1.80632314,152.65,152.64,0.2]
[1751587630916,8.35725664,152.65,152.64,0.2]
[1751587633227,1.522,152.65,152.64,0.2]
[1751587634524,1.264,152.6,152.53,10.5835715]
[1751587634822,0.28432314,152.53,152.49,1e-08]
[1751587635120,0.28432314,152.53,152.43,0.1]
[1751587635121,26.28432314,152.45,152.43,1e-08]
[1751587635319,44.87873195,152.44,152.43,1e-08]
[1751587635519,40.78468471,152.44,152.43,1e-08]
[1751587635697,26.14216157,152.42,152.37,0.1]
[1751587636093,0.14216157,152.4,152.37,0.1]
[1751587636317,3.50372589,152.4,152.37,0.1]
[1751587636503,60.1,152.42,152.37,0.1]
[1751587636504,6.56211037,152.39,152.37,0.1]
[1751587636709,42.40309565,152.42,152.37,0.1]
[1751587636710,32.5609013,152.42,152.37,0.1]
[1751587638422,6.5609013,152.42,152.37,0.1]
[1751587638607,6.84471151,152.43,152.37,0.1]
[1751587638925,11.67713473,152.43,152.37,0.1]
[1751587640345,6.55737704,152.5,152.41,0.14216157]
[1751587640644,0.28432314,152.49,152.41,0.14216157]
[1751587640937,6.55737704,152.5,152.41,26.14216157]
[1751587642136,6.55737704,152.5,152.41,32.70335206]
[1751587646139,11.37706938,152.5,152.41,32.70335206]
[1751587646343,6.55737704,152.5,152.41,32.70335206]
[1751587646544,11.37706938,152.5,152.41,120.40335206]
[1751587646718,6.55737704,152.5,152.41,120.40335206]
[1751587646915,11.37706938,152.5,152.41,120.40335206]
[1751587647122,11.37780788,152.49,152.41,120.40335206]
[1751587647339,6.55811554,152.49,152.41,120.40335206]
[1751587647830,11.37780788,152.49,152.41,120.40335206]
[1751587648012,6.55811554,152.49,152.41,120.40335206]
[1751587648336,6.55811554,152.49,152.41,94.40333279]
[1751587648337,4.81969234,152.48,152.41,94.40333279]
[1751587650236,6.55834273,152.48,152.41,94.40333279]
[1751587651235,11.37803507,152.48,152.41,94.40333279]
[1751587651440,6.55834273,152.48,152.41,94.40333279]
[1751587651737,11.37803507,152.48,152.41,94.40333279]
[1751587651922,6.55834273,152.48,152.41,94.40333279]
[1751587652110,11.37803507,152.48,152.41,94.40333279]
[1751587652310,4.81969234,152.49,152.41,94.40333279]
[1751587652534,4.81969234,152.51,152.41,94.40333279]
[1751587652719,4.81969234,152.5,152.41,94.40333279]
[1751587652922,11.37668262,152.51,152.45,0.14216157]
[1751587653219,4.81969234,152.5,152.45,87.84216157]
[1751587653814,6.55699028,152.51,152.45,87.84216157]
[1751587654015,11.37668262,152.51,152.45,87.84216157]
[1751587654234,6.55699028,152.51,152.45,94.40153325]
[1751587654541,11.37668262,152.51,152.45,94.40153325]
[1751587654745,6.55699028,152.51,152.45,94.40153325]
[1751587654936,11.37668262,152.51,152.45,94.40153325]
[1751587655124,6.55699028,152.51,152.45,94.40153325]
[1751587655325,11.37668262,152.51,152.45,94.40153325]
[1751587655623,4.81969234,152.5,152.45,94.40153325]
[1751587656553,11.37707516,152.5,152.45,94.40153325]
[1751587656736,6.55738282,152.5,152.45,87.7]
[1751587656935,4.81969234,152.49,152.45,87.7]
[1751587657858,4.81969234,152.48,152.45,87.7]
[1751587658026,4.81969234,152.49,152.45,87.7]
[1751587658341,11.37832379,152.48,152.44,113.7]
[1751587658544,8.2053543,152.72,152.6,26.0]
[1751587658759,0.2,152.72,152.69,26.0]
[1751587658959,0.2,152.74,152.73,26.42648471]
[1751587659265,0.2,152.74,152.73,62.26648471]
[1751587659440,0.2,152.74,152.73,0.14216157]
[1751587659930,0.2,152.74,152.65,8.10216157]
[1751587660131,0.2,152.74,152.69,32.54917098]
[1751587660526,0.2,152.74,152.69,26.0]
[1751587663663,0.2,152.74,152.7,26.0]
[1751587663851,0.2,152.74,152.68,26.0]
[1751587664156,0.2,152.74,152.69,0.14216157]
[1751587664941,0.2,152.74,152.69,26.14216157]
[1751587666349,0.2,152.74,152.68,26.14216157]
[1751587666552,0.2,152.74,152.7,26.0]
[1751587666730,0.2,152.74,152.68,32.69179548]
[1751587667951,0.2,152.74,152.68,26.14216157]
[1751587669258,0.2,152.74,152.71,26.0]
[1751587671965,0.2,152.74,152.7,26.0]
[1751587672138,6.74708244,152.74,152.7,26.0]
[1751587681767,6.74708244,152.74,152.69,0.1]
[1751587682073,6.74708244,152.74,152.7,26.0]
[1751587684054,12.81738244,152.74,152.7,26.0]
[1751587685378,12.81738244,152.74,152.69,0.1]
[1751587689982,12.81738244,152.74,152.69,6.64919897]
[1751587692269,6.2703,152.74,152.7,6.54853783]
[1751587694382,6.2703,152.74,152.71,6.54833273]
[1751587694966,0.2,152.74,152.73,26.14216157]
[1751587695166,0.2,152.74,152.73,30.94131267]
[1751587696380,0.2,152.74,152.73,37.48881479]
[1751587697391,0.2,152.74,152.73,39.89666316]
[1751587698172,0.2,152.74,152.73,45.87757657]
[1751587699193,0.2,152.74,152.73,39.89666316]
[1751587700176,0.2,152.75,152.74,6.68923502]
[1751587700493,0.2,152.75,152.74,19.9369584]
[1751587701186,0.2,152.75,152.74,13.89623449]
[1751587702681,0.2,152.75,152.74,9.09708339]
[1751587702885,0.2,152.75,152.74,13.95321668]
[1751587703084,0.2,152.76,152.74,13.95321668]
[1751587703287,0.2,152.76,152.75,19.60589727]
[1751587703882,0.2,152.76,152.75,17.1980489]
[1751587704194,0.2,152.76,152.75,4.99829486]
[1751587704392,0.2,152.76,152.75,37.5449397]
[1751587704574,0.2,152.76,152.75,44.88559895]
[1751587705091,0.2,152.76,152.75,32.68880641]
[1751587705291,0.2,152.76,152.75,44.88053873]
[1751587705694,0.2,152.76,152.75,49.75723166]
[1751587706693,0.2,152.76,152.75,44.88053873]
[1751587707894,0.2,152.76,152.75,32.68880641]
[1751587709103,0.2,152.76,152.75,44.87048653]
[1751587709483,1e-08,152.76,152.75,45.15480967]
[1751587709688,1e-08,152.76,152.75,32.97312955]
[1751587711007,1e-08,152.76,152.75,32.68880641]
[1751587712400,1e-08,152.76,152.75,67.56880641]
[1751587714104,1e-08,152.76,152.75,67.85312955]
[1751587715208,1e-08,152.76,152.75,75.96168297]
[1751587715503,1e-08,152.76,152.75,67.85312955]
[1751587715809,1e-08,152.76,152.75,75.96087265]
[1751587717292,1e-08,152.76,152.75,67.85312955]
[1751587720303,1e-08,152.76,152.75,75.96087265]
[1751587725421,1e-08,152.76,152.75,76.06087265]
[1751587725588,15.90087676,152.97,152.76,0.3096]
[1751587725788,7.752,153.01,152.97,0.42648471]
[1751587726008,7.752,153.01,152.98,79.31050957]
[1751587726193,7.752,153.01,152.99,4.84422721]
[1751587726395,7.752,153.01,153.0,4.8285578]
[1751587726594,7.752,153.01,152.98,26.0]
[1751587726788,7.752,153.01,152.99,4.83315177]
[1751587726993,7.752,153.01,153.0,4.83315177]
[1751587728909,14.28761415,153.01,152.96,26.0]
[1751587729098,14.28761415,153.01,152.94,0.14216157]
[1751587731003,40.28761415,153.01,152.92,26.0]
[1751587731210,40.28761415,153.01,152.93,0.14216157]
[1751587731405,56.62641553,153.01,152.91,0.42648471]
[1751587731617,26.0,152.98,152.89,7.84]
[1751587732108,6.53722952,152.97,152.89,7.84]
[1751587732313,6.53722952,152.97,152.9,0.14216157]
[1751587732506,6.53722952,152.97,152.89,7.84]
[1751587732707,6.53722952,152.97,152.9,0.14216157]
[1751587733913,22.88030332,152.97,152.9,0.14216157]
[1751587734518,16.3430738,152.97,152.9,0.14216157]
[1751587738898,6.4447,152.96,152.9,0.14216157]
[1751587739823,22.88329519,152.95,152.89,7.84]
[1751587749634,6.53893938,152.93,152.89,7.84]
[1751587749842,6.53893938,152.93,152.89,95.54]
[1751587751831,6.3977,152.92,152.85,6.02823301]
[1751587752046,6.3977,152.92,152.86,4.82657556]
[1751587752217,6.3977,152.92,152.87,4.97001684]
[1751587752414,6.3977,152.92,152.87,0.14216157]
[1751587753432,6.53979465,152.91,152.87,0.14216157]
[1751587754328,6.53979465,152.91,152.86,0.14216157]
[1751587754534,6.53979465,152.91,152.87,4.82993819]
[1751587754829,6.53979465,152.91,152.86,0.14216157]
[1751587755035,6.53979465,152.91,152.87,4.83021507]
[1751587755236,6.53979465,152.91,152.86,0.14216157]
[1751587755544,6.53979465,152.91,152.87,4.83042578]
[1751587755872,6.53979465,152.91,152.86,0.14216157]
[1751587756028,6.53979465,152.91,152.87,4.8309239]
[1751587756232,6.53979465,152.91,152.86,0.14216157]
[1751587756550,6.53979465,152.91,152.87,4.83296356]
[1751587756835,6.53979465,152.91,152.88,4.83296356]
[1751587757040,6.53979465,152.91,152.87,87.7]
[1751587757236,6.53979465,152.91,152.88,4.83266333]
[1751587757440,6.53979465,152.91,152.87,87.7]
[1751587757743,6.53979465,152.91,152.88,4.83386964]
[1751587757944,6.53979465,152.91,152.87,87.7]
[1751587758129,6.53979465,152.91,152.88,4.83386964]
[1751587758332,6.53979465,152.91,152.87,87.7]
[1751587758524,6.53979465,152.91,152.88,4.83525298]
[1751587758723,6.53979465,152.91,152.87,87.7]
[1751587759041,6.53979465,152.91,152.88,4.83525298]
[1751587759229,6.53979465,152.91,152.89,4.83525298]
[1751587759429,6.53979465,152.91,152.87,87.7]
[1751587759729,6.53979465,152.91,152.88,4.83582873]
[1751587759932,6.53979465,152.91,152.87,87.7]
[1751587760139,6.53979465,152.91,152.88,4.83702414]
[1751587760338,6.53979465,152.91,152.87,87.7]
[1751587760531,6.53979465,152.91,152.88,4.83844021]
[1751587760734,6.53979465,152.91,152.87,87.7]
[1751587761032,6.53979465,152.91,152.88,4.83844021]
[1751587761233,6.53979465,152.91,152.89,4.83808128]
[1751587761530,6.53979465,152.91,152.87,87.7]
[1751587761722,6.53979465,152.91,152.88,4.83953917]
[1751587761917,6.53979465,152.91,152.87,87.7]
[1751587761918,6.53979465,152.91,152.89,4.83953917]
[1751587762116,6.53979465,152.91,152.87,87.7]
[1751587762338,6.53979465,152.91,152.88,4.84011701]
[1751587762539,6.53979465,152.91,152.89,4.84011701]
[1751587762750,6.53979465,152.91,152.87,87.7]
[1751587763048,6.53979465,152.91,152.88,4.84163458]
[1751587763249,6.53979465,152.91,152.89,4.84163458]
[1751587763453,6.53979465,152.91,152.87,87.7]
[1751587763748,6.53979465,152.91,152.88,4.84316525]
[1751587763917,6.53979465,152.91,152.89,4.84316525]
[1751587764119,6.3977,152.92,152.88,0.14216157]
[1751587764347,6.3977,152.92,152.89,4.84337331]
[1751587764550,6.3977,152.92,152.9,4.84337331]
[1751587764734,6.3977,152.92,152.91,4.84337331]
[1751587767954,8.05446284,152.94,152.91,4.84337331]
[1751587768124,8.05446284,152.94,152.92,4.84337331]
[1751587768324,8.05446284,152.94,152.89,6.54048674]
[1751587768544,8.05446284,152.94,152.9,4.85418557]
[1751587768733,8.05446284,152.94,152.91,4.85418557]
[1751587768933,8.05446284,152.94,152.92,4.85418557]
[1751587769150,8.05446284,152.94,152.89,6.54048674]
[1751587769448,8.05446284,152.94,152.9,4.85403738]
[1751587769658,8.05446284,152.94,152.91,4.85403738]
[1751587769838,8.05446284,152.94,152.92,4.85403738]
[1751587770038,8.05446284,152.94,152.93,4.85403738]
[1751587772946,8.05446284,152.94,152.93,4.86770211]
[1751587775127,8.15446284,152.94,152.93,4.86770211]
[1751587782856,24.78506556,152.94,152.9,6.08462764]
[1751587783053,0.28432314,152.93,152.87,13.78462764]
[1751587783353,0.28432314,152.93,152.87,7.7]
[1751587784957,6.53936698,152.92,152.87,7.7]
[1751587787154,22.88778445,152.92,152.87,7.7]
[1751587791877,0.28432314,152.9,152.84,93.78462764]
[1751587792943,0.28432314,152.9,152.87,0.2]
[1751587794073,6.54065014,152.89,152.87,0.2]
[1751587803182,1.664,152.88,152.87,0.2]
[1751587805284,8.20507796,152.88,152.87,0.2]
[1751587817689,8.3894011,152.88,152.87,0.2]
[1751587818281,0.28432314,152.87,152.81,95.38]
[1751587818470,0.28432314,152.87,152.81,0.2]
[1751587820895,22.89676827,152.86,152.81,0.2]
[1751587850924,6.74151284,152.87,152.81,0.34216157]
[1751587851221,6.74151284,152.87,152.82,6.08462764]
[1751587852904,23.09527747,152.87,152.81,6.28462764]
[1751587853096,0.28432314,152.86,152.81,6.28462764]
[1751587853298,0.28432314,152.86,152.81,0.2]
[1751587855420,6.54236179,152.85,152.81,0.2]
[1751587863445,22.89826627,152.85,152.81,0.2]
[1751587863644,0.28432314,152.84,152.81,0.2]
[1751587863943,1.87642314,152.82,152.81,1e-08]
[1751587864313,32.78762314,152.81,152.8,1e-08]
[1751587864744,32.92978471,152.81,152.8,1e-08]
[1751587866036,39.47385905,152.81,152.8,1e-08]
[1751587876358,32.54407434,152.81,152.8,1e-08]
[1751587876853,32.82839748,152.81,152.8,1e-08]
[1751587892669,33.02839748,152.81,152.8,1e-08]
[1751587909475,33.17055905,152.81,152.8,1e-08]
[1751587909682,41.06060908,152.81,152.8,1e-08]
[1751587910475,47.19179815,152.81,152.8,1e-08]
[1751587910675,41.06060908,152.81,152.8,1e-08]
[1751587911590,47.19179815,152.81,152.8,1e-08]
[1751587912101,41.06060908,152.81,152.8,1e-08]
[1751587914400,46.31381005,152.81,152.8,1e-08]
[1751587917691,53.43381005,152.81,152.8,1e-08]
[1751587931146,45.54376002,152.81,152.8,1e-08]
[1751587939435,53.43356284,152.81,152.8,1e-08]
[1751587953279,46.31356284,152.81,152.8,1e-08]
[1751587953452,87.21356284,152.81,152.8,1e-08]
[1751587953852,81.96036187,152.81,152.8,1e-08]
[1751587955074,87.10280826,152.81,152.8,1e-08]
[1751587956273,87.08280826,152.81,152.8,1e-08]
[1751587956671,93.21399733,152.81,152.8,1e-08]
[1751587973709,52.33399733,152.81,152.8,1e-08]
[1751587973905,93.17399733,152.81,152.8,1e-08]
[1751587974206,52.33399733,152.81,152.8,1e-08]
[1751587974407,93.17399733,152.81,152.8,1e-08]
[1751587977217,87.04280826,152.81,152.8,1e-08]
[1751587981424,0.14216157,152.74,152.72,1e-08]
[1751587981613,34.04432314,152.73,152.72,1e-08]
[1751587981812,43.42753575,152.73,152.72,1e-08]
[1751587982015,49.8827821,152.73,152.72,1e-08]
[1751587982224,56.43028422,152.73,152.72,1e-08]
[1751587982422,22.67028422,152.73,152.72,1e-08]
[1751587982732,56.43028422,152.73,152.72,1e-08]
[1751587983229,22.67028422,152.73,152.72,1e-08]
[1751587983416,56.43028422,152.73,152.72,1e-08]
[1751587989609,56.57244579,152.73,152.72,1e-08]
[1751587991211,26.28432314,152.7,152.69,1e-08]
[1751587991424,60.04432314,152.7,152.68,1e-08]
[1751587991630,6.45524635,152.69,152.68,1e-08]
[1751587992730,13.00446371,152.69,152.68,1e-08]
[1751587993236,13.28878685,152.69,152.68,1e-08]
[1751587993426,22.67199946,152.69,152.68,1e-08]
[1751587994230,22.67199946,152.69,152.66,1e-08]
[1751587994231,0.28432314,152.68,152.66,1e-08]
[1751587994434,33.76,152.67,152.66,1e-08]
[1751587994829,34.04432314,152.67,152.66,1e-08]
[1751587995249,0.28432314,152.66,152.65,1e-08]
[1751587995543,6.73956949,152.66,152.65,1e-08]
[1751587996238,13.29007387,152.66,152.65,1e-08]
[1751588006745,13.49007387,152.66,152.65,1e-08]
[1751588006946,47.25007387,152.66,152.65,1e-08]
[1751588008050,13.49007387,152.66,152.65,1e-08]
[1751588008242,47.25007387,152.66,152.65,1e-08]
[1751588011256,13.49007387,152.66,152.65,1e-08]
[1751588011451,47.25007387,152.66,152.65,1e-08]
[1751588013048,13.49007387,152.66,152.65,1e-08]
[1751588013355,47.25007387,152.66,152.65,1e-08]
[1751588015052,13.20575073,152.66,152.65,1e-08]
[1751588025041,13.20575073,152.66,152.65,27.66916158]
[1751588025042,0.2,152.66,152.65,27.66916158]
[1751588025242,0.2,152.73,152.66,0.42648471]
[1751588026366,6.74772498,152.73,152.68,0.14216157]
[1751588027360,6.74772498,152.73,152.68,6.69161969]
[1751588029556,0.2,152.73,152.68,6.69161969]
[1751588031280,6.747545,152.73,152.68,6.69161969]
[1751588034182,6.747545,152.73,152.68,94.39161969]
[1751588034687,0.2,152.73,152.68,94.39161969]
[1751588037893,0.2,152.73,152.68,120.39161969]
[1751588041885,6.74759305,152.73,152.68,120.39161969]
[1751588042606,0.2,152.73,152.68,120.39161969]
[1751588046508,0.2,152.73,152.72,26.0]
[1751588046689,0.2,152.81,152.73,0.28432314]
[1751588046895,0.2,152.81,152.76,5.31946157]
[1751588047109,0.2,152.81,152.77,0.28432314]
[1751588047297,0.2,152.81,152.79,26.0]
[1751588047505,0.2,152.81,152.79,26.14216157]
[1751588047824,0.2,152.81,152.79,27.79588471]
[1751588047981,0.2,152.81,152.79,27.51156157]
[1751588049213,0.2,152.81,152.79,42.75649252]
[1751588050492,0.2,152.81,152.79,76.45649252]
[1751588057904,0.2,152.81,152.79,164.15649252]
[1751588061214,0.2,152.81,152.79,164.44081566]
[1751588076955,0.2,152.87,152.8,0.42648471]
[1751588077137,0.2,152.87,152.85,0.14216157]
[1751588077453,0.2,152.87,152.86,33.66]
[1751588078859,0.2,152.87,152.86,40.20193379]
[1751588080133,0.2,152.87,152.86,33.66]
[1751588080762,0.2,152.87,152.84,32.54259225]
[1751588081064,0.2,152.87,152.84,33.64]
[1751588081269,0.2,152.87,152.83,47.36532211]
[1751588087385,0.2,152.87,152.84,8.7]
[1751588089291,0.2,152.87,152.84,15.24277689]
[1751588100200,0.2,152.87,152.84,8.7]
[1751588100386,6.74164419,152.87,152.84,8.7]
[1751588100892,8.2202,152.86,152.81,6.0926195]
[1751588101096,8.2202,152.86,152.78,13.1126195]
[1751588101305,14.76244602,152.86,152.79,6.68706013]
[1751588101514,14.76244602,152.86,152.79,6.54489856]
[1751588102612,14.76244602,152.86,152.8,8.7]
[1751588103308,31.1172805,152.86,152.8,8.7]
[1751588103603,50.4695805,152.86,152.8,8.7]
[1751588103805,6.0636,152.85,152.8,8.7]
[1751588105319,6.54278984,152.84,152.8,8.7]
[1751588105992,6.54278984,152.84,152.78,7.12]
[1751588107611,6.54278984,152.84,152.78,15.82]
[1751588107914,6.54278984,152.84,152.78,7.12]
[1751588108417,1.5193,152.83,152.78,7.12]
[1751588109218,6.3976,152.82,152.78,7.12]
[1751588109919,6.54407434,152.81,152.78,7.12]
[1751588115913,12.94142335,152.82,152.78,7.12]
[1751588117736,12.94142335,152.82,152.78,15.82]
[1751588124726,12.94142335,152.82,152.78,22.36530396]
[1751588125050,6.3976,152.82,152.78,22.36530396]
[1751588128746,1.5193,152.83,152.78,22.36530396]
[1751588129631,8.06259511,152.83,152.78,22.36530396]
[1751588130132,1.5193,152.83,152.78,22.36530396]
[1751588131554,1.5193,152.83,152.79,0.14216157]
[1751588133060,1.5193,152.83,152.8,6.54450261]
[1751588140560,8.06260169,152.83,152.79,6.54481086]
[1751588140755,1.5193,152.83,152.79,6.54481086]
[1751588140981,8.06268047,152.83,152.78,103.52]
[1751588141164,6.414,152.82,152.78,15.82]
[1751588141462,0.2,152.84,152.78,0.1]
[1751588141463,7.9152,152.79,152.78,0.1]
[1751588143346,14.46013095,152.79,152.78,0.1]
[1751588145785,14.74445409,152.79,152.78,0.1]
[1751588145942,30.82245832,152.79,152.74,0.1]